Cogmind - Beta 14 @@@ ROGUE MODE // 2025.01.11 @ 15:24:01 Player: abnormality Result: Destroyed by Y-45 Defender with Beam Rifle Performance ------------- Evolutions (1) 500 Regions Visited (3) 600 Robots Destroyed (36) 180 Value Destroyed (989) 989 Prototype IDs (1) 20 Alien Tech Used (0) 0 Bonus (0) 0 TOTAL SCORE: 2289 Bonus ------- None Cogmind --------- Core Integrity 0/400 Matter 249/300 Energy 275/275 System Corruption 12% Temperature Cool (9) Movement Core (250) Ox4 Location -9/Storage Parts ------- > --- POWER (1) -------- Deuterium Engine > --- PROPULSION (3) --- (None) > --- UTILITY (3) ------ Small Storage Unit Targeting Computer > --- WEAPON (2) ------- (None) > --- INVENTORY (8) ---- Cooled Ion Engine Large Storage Unit Large Storage Unit Peak State ------------ > --- POWER ------------ Ion Engine > --- PROPULSION ------- Light Treads Light Treads > --- UTILITY ---------- Large Storage Unit Sensor Array Terrain Scan Processor > --- WEAPON ----------- Assault Rifle Improved Grenade Launcher > --- INVENTORY -------- Ion Engine Deuterium Engine Small Storage Unit Large Storage Unit Seismic Detector Small Laser Assault Rifle [Rating: 11] Favorites ----------- Power Ion Engine Engine Ion Engine Propulsion Light Treads Treads Light Treads Leg Aluminum Leg Utility Large Storage Unit Device Seismic Detector Storage Large Storage Unit Processor Terrain Scan Processor Protection Light Armor Plating Weapon Assault Rifle Energy Gun Small Laser Ballistic Gun Assault Rifle Launcher Improved Grenade Launcher Build | -11 -10 -9 -9 ------- Run | Yrd Mat Mat Sto Slots Evolved 2 | . . 2 . Power . | . . . . Propulsion 1 | . . 1 . Utility 1 | . . 1 . Weapon . | . . . . Parts Attached 25 | 7 1 4 13 Power 2 | 1 . . 1 Engine 2 | 1 . . 1 Core . | . . . . Reactor . | . . . . Propulsion 4 | 2 . . 2 Treads 2 | 2 . . . Leg 2 | . . . 2 Wheel . | . . . . Hover . | . . . . Flight . | . . . . Utility 9 | 2 1 2 4 Device 3 | 1 . 1 1 Storage 3 | 1 1 . 1 Processor 2 | . . 1 1 Hackware . | . . . . Protection 1 | . . . 1 Artifact . | . . . . Weapon 10 | 2 . 2 6 Energy Gun 3 | . . . 3 Energy Cannon . | . . . . Ballistic Gun 4 | 2 . 1 1 Ballistic Cannon . | . . . . Launcher 3 | . . 1 2 Special Weapon . | . . . . Impact Weapon . | . . . . Slashing Weapon . | . . . . Piercing Weapon . | . . . . Special Melee Weapon . | . . . . Unidentified Prototypes 1 | . . . 1 Parts Lost 12 | . . . 12 Power 1 | . . . 1 Propulsion 4 | . . . 4 Utility 3 | . . . 3 Weapon 4 | . . . 4 Highest Loss Streak 4 | . . . 4 To Critical Strikes 1 | . . . 1 Average Slot Usage (%) 81 | . 100 87 68 Engine 11 | . 14 11 10 Treads 18 | . 28 22 11 Leg 2 | . . . 5 Device 8 | . 14 11 4 Storage 11 | . 14 11 11 Processor 2 | . . 10 2 Protection 1 | . . . 3 Energy Gun 4 | . . . 8 Ballistic Gun 17 | . 28 19 11 Peak Build Rating 11 | 7 7 11 11 Average Rating 8 | 5 7 9 8 On Entrance 6 | . 7 7 10 Naked Turns . | . . . . Heaviest Build 34 | 15 30 34 33 Greatest Support 40 | 40 40 40 40 Greatest Overweight (x) 7 | . . . 7 Average Overweight (x) . | . . . . Largest Inventory Capacity 15 | 8 15 15 15 Average Capacity 12 | 7 13 15 12 Most Carried 8 | 4 6 8 8 Average Carried 5 | 2 5 6 5 Final Capacity 15 | 8 15 15 8 Final Carried 7 | 3 6 7 3 Class Distribution -------------------- 100% | Mutant Dominant Class ---------------- Mutant | -10/Materials Mutant | -9/Materials Mutant | -9/Storage Resources | -11 -10 -9 -9 ----------- Run | Yrd Mat Mat Sto Matter Collected 923 | 318 154 153 298 Remotely . | . . . . Salvage Created 1189 | 118 188 194 689 Parts 78 | 11 18 12 37 Haulers Intercepted 1 | . . 1 . Recyclers Shooed 1 | . . . 1 Parts Field Recycled . | . . . . Retrieved Matter . | . . . . Parts Self-Destructed . | . . . . Prevented . | . . . . Kills | -11 -10 -9 -9 ------- Run | Yrd Mat Mat Sto Combat Hostiles Destroyed 25 | . 6 6 13 Guns 19 | . 6 1 12 AOE 6 | . . 5 1 Classes Destroyed 10 | 3 3 3 1 Worker 1 | 1 . . . Tunneler 2 | 2 . . . Hauler 1 | . . 1 . Recycler 3 | 1 . . 2 Operator 1 | . . . 1 Watcher 3 | . 2 1 . Swarmer 3 | . 3 . . Grunt 15 | . 3 4 8 Duelist 1 | . . 1 . Sentry 6 | . . 1 5 Best Kill Streak 5 | 2 2 5 5 Combat Bots Only 5 | . 2 5 3 Max Kills in Single Turn 3 | 1 1 3 1 Gunslinging . | . . . . Exploded 3 | . . 3 1 Melee . | . . . . Uniques/NPCs Destroyed . | . . . . Combat | -11 -10 -9 -9 -------- Run | Yrd Mat Mat Sto Hostile Shots Fired 150 | . 38 13 99 Missed 49 | . 13 6 30 Damage Taken 1680 | . 230 159 1291 Core 449 | . 42 . 407 Absorbed by Shields . | . . . . Core Remaining (%) 91 | 100 83 . . Volleys Fired 107 | 8 24 11 64 Largest 2 | 2 2 2 2 Hottest 96 | 40 40 56 96 Shots Fired 195 | 16 48 22 109 Gun 186 | 16 48 17 105 Cannon . | . . . . Launcher 9 | . . 5 4 Special . | . . . . Kinetic 142 | 16 48 17 61 Thermal 44 | . . . 44 Explosive 9 | . . 5 4 Electromagnetic . | . . . . Robot Hit Streak 11 | 5 4 10 11 Robot Miss Streak 5 | 2 5 1 3 Penetration Max . | . . . . Secondary Targets 1 | . . . 1 Max Gunslinging Chain 1 | . . . 1 Shots Hit Robots 116 | 9 29 14 64 Core Hits 59 | 4 12 15 28 Critical Kills . | . . . . Critical Parts Destroyed 2 | . . 1 1 Critical Strikes 3 | . . 1 2 Burn 1 | . . . 1 Destroy 2 | . . 1 1 Melee Attacks . | . . . . Impact . | . . . . Slashing . | . . . . Piercing . | . . . . Sneak Attacks . | . . . . Combat Hostiles . | . . . . Follow-up Attacks . | . . . . Damage Inflicted 2066 | 129 385 569 983 Guns 1434 | 129 385 135 785 Cannons . | . . . . Explosions 632 | . . 434 198 Melee . | . . . . Ramming . | . . . . Kinetic 1148 | 129 385 135 499 Thermal 286 | . . . 286 Explosive 632 | . . 434 198 Electromagnetic . | . . . . Impact . | . . . . Slashing . | . . . . Piercing . | . . . . Highest Corruption 12 | . . . 12 Average Corruption 12 | . . . 12 Corruption Purged . | . . . . Corruption Blocked . | . . . . Effects 19 | . . . 19 Message Errors 3 | . . . 3 Matter Fused 4 | . . . 4 Heat Flow Errors 4 | . . . 4 Energy Discharges 1 | . . . 1 Parts Rejected 2 | . . . 2 Data Loss (minor) 1 | . . . 1 Data Loss (major) 1 | . . . 1 Misfires 1 | . . . 1 Weapon Failures 2 | . . . 2 Overload Shots . | . . . . Overflow Damage 21 | . . . 21 Projectiles . | . . . . Explosions 21 | . . . 21 Melee . | . . . . Knockbacks . | . . . . Impact . | . . . . Kinetic . | . . . . Secondary . | . . . . Self-Inflicted Damage 113 | . . 65 48 Shots 5 | . . 3 2 Rammed . | . . . . Targets Rammed . | . . . . Kicked . | . . . . Crushed . | . . . . Highest Temperature 360 | . 2 4 360 Average Temperature 107 | . 2 4 111 Received Heat Transfer 453 | . 36 39 378 Siege Activations . | . . . . Robots Corrupted . | . . . . Combat Hostiles . | . . . . Parts Fried . | . . . . Impact Corruptions . | . . . . Robots Melted . | . . . . Combat Hostiles . | . . . . Parts Melted 1 | . . . 1 Heat Transferred 708 | . . . 708 Parts Sabotaged . | . . . . Parts Stolen . | . . . . Parts Stripped . | . . . . Power Chain Reactions . | . . . . Alert | -11 -10 -9 -9 ------- Run | Yrd Mat Mat Sto Peak Influence 287 | 20 145 283 287 Initial 118 | . 13 61 118 Average 125 | 9 80 161 160 Maximum Alert Level 1 | . . 1 1 Low Security (%) 87 | 100 100 59 87 Level 1 12 | . . 40 12 Level 2 . | . . . . Level 3 . | . . . . Level 4 . | . . . . Level 5 . | . . . . High Security . | . . . . Max Security . | . . . . Squads Dispatched 4 | . . 1 3 Investigation 1 | . . . 1 Extermination . | . . . . Reinforcement 3 | . . 1 2 Assault . | . . . . Garrison . | . . . . Intercept . | . . . . Searches Triggered . | . . . . Construction Impeded . | . . . . Haulers Reinforced . | . . . . Active Scanning Responses . | . . . . Cargo Convoy Interrupts . | . . . . Stealth | -11 -10 -9 -9 --------- Run | Yrd Mat Mat Sto Distress Signals 4 | . 2 . 2 Communications Jammed . | . . . . Distress Signals . | . . . . Times Spotted 45 | . 17 9 19 Peak Tracking Total 6 | . 6 5 4 Tactical Retreats 3 | . 1 . 2 Traps | -11 -10 -9 -9 ------- Run | Yrd Mat Mat Sto Traps Triggered 4 | . . . 4 Indirectly . | . . . . Trap Hack Attempts . | . . . . Triggered . | . . . . Disarmed . | . . . . Reprogrammed . | . . . . Reused . | . . . . Traps Extracted . | . . . . Installed . | . . . . Triggered . | . . . . Machines | -11 -10 -9 -9 ---------- Run | Yrd Mat Mat Sto Machines Disabled 2 | . . 1 1 Max in Single Turn 1 | . . 1 1 Machines Repaired . | . . . . Machines Dismantled . | . . . . Machines Sabotaged . | . . . . Overloaded Fab Kills . | . . . . Hacking | -11 -10 -9 -9 --------- Run | Yrd Mat Mat Sto Machines Accessed 4 | . 1 1 2 Terminals 3 | . 1 1 1 Fabricators . | . . . . Repair Stations . | . . . . Recycling Units . | . . . . Scanalyzers . | . . . . Garrison Access 1 | . . . 1 Total Hacks 8 | . 1 1 6 Successful 3 | . 1 1 1 Failed 5 | . . . 5 Catastrophic . | . . . . Database Lockouts . | . . . . Manual . | . . . . Terminals 4 | . 1 1 2 Fabricators . | . . . . Repair Stations . | . . . . Recycling Units . | . . . . Scanalyzers . | . . . . Garrison Access 4 | . . . 4 Terminal Hacks 3 | . 1 1 1 Open Door 1 | . . . 1 Dispatch Records 1 | . . 1 . Registered Components 1 | . 1 . . Fabricator Hacks . | . . . . Repair Station Hacks . | . . . . Recycling Unit Hacks . | . . . . Scanalyzer . | . . . . Garrison Access Hacks . | . . . . Unauthorized Hacks . | . . . . Terminals . | . . . . Fabricators . | . . . . Repair Stations . | . . . . Recycling Units . | . . . . Scanalyzers . | . . . . Garrison Access . | . . . . Data Cores Recovered . | . . . . Used . | . . . . Hacking Detections 2 | . . . 2 Full Trace Events 1 | . . . 1 Feedback Events . | . . . . Feedback Blocked . | . . . . Robot Schematics Acquired . | . . . . Robots Built . | . . . . Authchips . | . . . . Time . | . . . . Total Robot Build Rating . | . . . . Part Schematics Acquired . | . . . . Parts Built . | . . . . Authchips . | . . . . Time . | . . . . Total Part Build Rating . | . . . . Parts Repaired . | . . . . Time . | . . . . Parts Recycled . | . . . . Recycled Matter . | . . . . Retrieved Matter . | . . . . Retrieved Components . | . . . . Parts Scanalyzed . | . . . . Part Schematics Acquired . | . . . . Parts Damaged . | . . . . Bothacking | -11 -10 -9 -9 ------------ Run | Yrd Mat Mat Sto Used RIF Installer . | . . . . Robots Hacked . | . . . . Non-combat . | . . . . Combat . | . . . . Robot Hacks Applied . | . . . . Relay Couplers Released . | . . . . Fabnet Peak Effective % . | . . . . Robots Rewired . | . . . . Allies Hacked . | . . . . Hacks Repelled . | . . . . Allies | -11 -10 -9 -9 -------- Run | Yrd Mat Mat Sto Total Allies . | . . . . Largest Group . | . . . . Highest-Rated Group . | . . . . Highest-Rated Ally . | . . . . Total Orders . | . . . . Ally Attacks . | . . . . Total Damage . | . . . . Kills . | . . . . Allies Corrupted . | . . . . Allies Melted . | . . . . Intel | -11 -10 -9 -9 ------- Run | Yrd Mat Mat Sto Robot Analysis Total . | . . . . Derelict Logs Recovered . | . . . . Drone Launches . | . . . . Drone Recoveries . | . . . . Exploration | -11 -10 -9 -9 ------------- Run | Yrd Mat Mat Sto Turns Passed 1709 | 123 512 254 820 Spaces Moved 772 | 54 273 132 313 Core 18 | 3 . . 15 Treads 600 | 51 273 132 144 Legs 154 | . . . 154 Wheels . | . . . . Hover . | . . . . Flight . | . . . . Fastest Speed 50 | 50 160 160 120 Average Speed 162 | 153 160 160 167 Slowest Speed 400 | 160 160 160 400 Overloaded Moves . | . . . . Propulsion Burnouts . | . . . . Robots Hopped . | . . . . Cave-ins Triggered 1 | . . . 1 Exploration Rate (%) 29 | 4 48 17 50 Regions Visited 3 Branch Regions 1 Pre-discovered Areas 1 | . . . 1 Known Exits Taken . | . . . . Unknown Exits Taken 3 | 1 1 1 . Scrap Searched . | . . . . Spaces Dug . | . . . . Terrain Destroyed 81 | . . 43 38 Melee . | . . . . Projectile . | . . . . AOE 81 | . . 43 38 Terrain Rammed . | . . . . Walls Destroyed . | . . . . Machines Disabled . | . . . . Actions | -11 -10 -9 -9 --------- Run | Yrd Mat Mat Sto Total 1030 | 78 300 153 499 Wait 96 | . . . 96 Move 769 | 53 272 131 313 Hop . | . . . . Pick Up 26 | 10 3 4 9 Fast Attach . | . . . . Attach 19 | 7 . 2 10 Detach 2 | . . 1 1 Swap 6 | . 1 2 3 Drop 5 | . . 2 3 Fire 107 | 8 24 11 64 Melee . | . . . . Ram . | . . . . Kick . | . . . . Crush . | . . . . Escape Stasis . | . . . . Rewire . | . . . . Trap . | . . . . Miscellaneous . | . . . . Route ------- -11/Scrapyard -10/Materials -9/Materials -9/Storage History --------- Turn | Location | Event 22 | -11/Scrapyard | Discovered new exit (range 16) 124 | -11/Scrapyard | Entered Materials 315 | -10/Materials | Build established: Mutant 615 | -10/Materials | Discovered new exit (range 14) 636 | -10/Materials | Entered another Materials area 636 | -9/Materials | Evolved 2 slots: Propulsion x1, Utility x1 885 | -9/Materials | Discovered new exit (range 4) 890 | -9/Materials | Entered Storage 1332 | -9/Storage | Crushed by falling debris 1332 | -9/Storage | System corruption reached 10% 1363 | -9/Storage | Lost 4 parts (1p1n1u1w) 1406 | -9/Storage | Learned location of Armory (-3) 1472 | -9/Storage | Core integrity fell below 50% 1695 | -9/Storage | Core integrity fell below 20% 1710 | -9/Storage | Destroyed by Y-45 Defender with Beam Rifle Last Messages --------------- 01664_ An explosion rips through the floor. 01669_ G-34 Mercenary destroyed. 01669_ R-06 Scavenger collects Heat Sink. 01671_ Aluminum Leg destroyed. 01672_ System corrupted: Imp. Medium Laser rejected. 01673_ R-06 Scavenger collects Aluminum Leg. 01679_ R-06 Scavenger collects Imp. Medium Laser. 01686_ Connecting with Door Terminal... >>Open(Door) Sealed Heavy Doors opened. 01687_ System corrupted: Heat flow error (+167). 01696_ Acquired Targeting Computer. 01696_ Critical hit (Burn: +37). 01696_ Critical hit (Destroy). 01696_ Sml. Laser destroyed. 01704_ System corrupted: Beam Rifle rejected. 01704_ Door Terminal disabled. 01706_ Destroyed Aluminum Leg. 01706_ G-34 Mercenary destroyed. 01707_ Imp. Grenade Launcher destroyed. Map ----- +----------------------------------------------------+ | ?????????????????????????????????????????????????? | | ?????????????????????????????????????????????????? | | ?????????????????????????????????????????????????? | | ?????????????????????????????????????????????????? | | ?????????????????????????????????????????????????? | | ?????????????????????????????????????????????????? | | ?????????????????????????????????????????????????? | | ?????????????????????????????????????????????????? | | ??????????????????????????????? ???????????????? | | ?????????????????????????????? ???????????????? | | ??????????????????????????????# #??????????????? | | ??????????????????????????????# #??????????????? | | ??????????????????????????????# #??????????????? | | ??????????????????????????????# #??????????????? | | ??????????????????????????????+ /??????????????? | | ????????????????? ??????????# #??????????????? | | ????????????????# #?????????# % #??????????????? | | ????????????????# #?????????# #??????????????? | | ????????????????# #?????????# #??????????????? | | #####???????????# #?????????# ##########?????? | | #???????????# #????????## Y # #?????? | | #???????????+ #?###### """ #?????? | | " #???????????# #?#!!! # a """ #?????? | | " #???????????# #?#!! """ ##????? | | " #???????????# #?#!! r ! #????? | | " #???????????# #?# [@ [% """ ##????? | | " #???????????# #?#!! # # """ #?????? | | " #?########### #?#!!! #### # """ #?????? | | #?# ?? # #?######??# # % % #?????? | | +###### "????" # ####??????# ###T##"###?????? | | + "????" # #??????## ##?#### #???????? | | ##### "????" + #???????# #?????# ######### | | #???# """""" # #???????# #?????#%## ! # | | ^#???# # #+##+###?????# #????## ##!%= # | | #???# # # #???" + ###### # """ ] | | #???# # # """ #?????# T + """ # | | #???########### # """ #?????# ###### # """ !# | | #????????##???# # """ #??#### #????##### # | | #??????### #### # #??# #????????####T### | | #??????# # # ##?# #????????????##?? | | #??????# """ # ## ### ####????????????? | | #??????# """%%+^ #????????????? | | #??????# """ # ###+### #????????????? | | #??????# # % # #????????????? | | #??????# = + #????????????? | | #??????###T % # # ###+##???????????? | | #! ######### ##### ## #???????????? | | # = + !% #???# ## #???????????? | | # ###### ##???# ## #???????????? | | ########### #????#############???????????? | +----------------------------------------------------+ Best States ------------- Heat Dissipation 28 Energy Generation 14 Energy Capacity 275 Matter Stores 300 Matter Capacity 300 Sight Range 16 Robot Scan Range 14 Terrain Scan Density 85 Armor Coverage 150 Evasion (%) 55 Targeting Accuracy 5 Recoil Reduction 2 Item Schematics ----------------- None Robot Schematics ------------------ None Fabricated ------------ Nothing Alien Tech Used ----------------- None Achievements -------------- None Challenges ------------ None Game ------ Seed HackingDispersionThruster Manual? 0 Play Time 00:12:26 Cumulative 16.6 hours Start 2025.01.11 @ 15:13:46 End 2025.01.11 @ 15:24:01 Sessions 1 Manual Loads 0 Difficulty Rogue Special Mode None Game No. 77 Rogue 77 Adventurer 0 Explorer 0 Win Type - Total 0 Types 0/0/0/0/0/0/0/0/0 Lore% 16 Gallery% 19 Achievement% 21 Wizard Run 0 Options --------- Layout 0 ASCII 0 Keyboard 0 Movement Mouse Keybinds 0 Fullscreen 1 Font 18/SmallcapsGlow Map View 38x25 Zoom Use 100% Tactical HUD 1 Map Filters NONE Filters NONE Steam 1 RUN: 89a3c00d-3dcb-4b9f-b51b-cfc5780df27b